bitfinex-derivatives/quotes_ETHF0:USTF0_20250831
["timestamp","ask_amount","ask_price","bid_price","bid_amount"]
[1756600380375,0.25,4396.3,4395.0,0.2847]
[1756600380584,0.2847,4396.2,4395.0,0.2847]
[1756600380772,0.25,4396.1,4395.0,0.2847]
[1756600380976,0.25,4396.1,4394.9,3.2078]
[1756600380977,0.2847,4395.9,4394.9,3.2078]
[1756600381582,0.2847,4395.9,4395.6,3.2078]
[1756600381881,0.2847,4395.9,4395.5,3.2078]
[1756600382077,0.2847,4396.0,4395.5,3.2078]
[1756600382272,0.2847,4396.0,4395.0,3.48175837]
[1756600382477,0.2847,4396.0,4394.9,3.2078]
[1756600382983,0.2847,4396.0,4394.1,0.10468464]
[1756600382984,0.2847,4395.4,4394.1,3.31248464]
[1756600383288,0.2847,4395.2,4394.1,3.31248464]
[1756600383488,0.25,4395.3,4394.1,0.10468464]
[1756600383780,0.2847,4395.2,4394.1,0.10468464]
[1756600383986,3.2078,4394.7,4394.1,0.10468464]
[1756600384183,0.2847,4394.5,4394.1,0.10468464]
[1756600384482,0.25,4394.6,4394.1,0.10468464]
[1756600384688,0.2847,4394.5,4394.1,0.10468464]
[1756600385584,0.25,4394.6,4394.1,0.10468464]
[1756600385884,3.2078,4394.7,4394.1,3.31248464]
[1756600385885,3.4568,4394.7,4394.1,3.31248464]
[1756600386081,3.4568,4394.7,4394.2,0.274]
[1756600386385,3.4568,4394.7,4394.1,3.58648464]
[1756600387177,3.2078,4394.7,4394.1,3.58648464]
[1756600387385,3.4568,4394.7,4394.1,3.58648464]
[1756600387587,3.2078,4394.7,4394.1,3.58648464]
[1756600387786,3.4568,4394.7,4394.1,0.10468464]
[1756600387975,0.296,4394.6,4394.1,0.10468464]
[1756600388180,0.249,4395.1,4394.2,0.2731]
[1756600391489,0.296,4395.0,4394.2,0.2731]
[1756600393885,0.296,4395.4,4394.8,3.2078]
[1756600394188,0.544,4395.7,4394.9,0.2731]
[1756600395986,0.296,4395.7,4394.9,0.2731]
[1756600398090,3.2078,4395.8,4394.9,0.2731]
[1756600398688,3.2078,4396.4,4395.5,0.2731]
[1756600399986,0.296,4396.7,4395.5,0.2731]
[1756600400192,3.2078,4396.9,4396.0,0.2731]
[1756600401190,0.296,4396.8,4396.1,0.21334412]
[1756600401390,0.296,4396.8,4396.2,0.21334412]
[1756600401697,0.296,4396.8,4396.2,0.2731]
[1756600402095,3.2078,4396.9,4396.3,0.21334394]
[1756600402294,0.296,4396.8,4396.1,0.87183679]
[1756600402496,3.5038,4396.9,4396.3,0.59903679]
[1756600403198,0.296,4396.8,4396.2,0.87183679]
[1756600403393,0.296,4396.8,4396.3,0.59903679]
[1756600403790,0.188,4396.4,4396.2,0.59903679]
[1756600403990,0.484,4396.3,4396.2,0.59903679]
[1756600404198,0.484,4396.3,4396.2,0.4759]
[1756600404500,0.484,4396.3,4396.2,1.27461572]
[1756600405191,0.484,4396.3,4396.2,1.60483973]
[1756600405389,0.484,4396.3,4396.2,0.80612401]
[1756600405795,0.484,4396.3,4396.2,0.4759]
[1756600406798,0.188,4396.3,4396.1,1.20255758]
[1756600407001,0.484,4396.1,4395.9,4.41035758]
[1756600407197,0.484,4396.0,4395.8,0.29363381]
[1756600407503,0.484,4396.0,4395.4,0.29363381]
[1756600407700,0.296,4395.3,4395.2,3.2078]
[1756600407903,0.247,4395.4,4394.7,0.80457842]
[1756600408198,0.296,4395.3,4394.6,4.01237842]
[1756600408597,0.247,4395.4,4394.6,4.01237842]
[1756600409000,0.247,4395.4,4394.6,3.2078]
[1756600409193,0.296,4395.3,4394.6,3.2078]
[1756600409500,0.247,4395.4,4394.6,3.2078]
[1756600409700,3.4548,4395.4,4394.6,3.2078]
[1756600410097,4.22753,4395.3,4394.1,4.11706306]
[1756600410302,0.296,4394.3,4394.1,0.10468464]
[1756600410503,0.543,4394.2,4394.1,0.10468464]
[1756600412699,0.731,4394.2,4394.1,0.10468464]
[1756600412904,0.731,4394.2,4394.1,0.02803298]
[1756600414805,4.731,4394.2,4394.1,0.02803298]
[1756600415003,4.435,4394.2,4393.0,3.2078]
[1756600415204,3.2078,4393.9,4393.0,3.2078]
[1756600415409,0.188,4393.1,4393.0,3.2078]
[1756600415613,0.484,4393.1,4393.0,3.4109]
[1756600415811,0.296,4393.0,4392.8,0.80457842]
[1756600416009,0.296,4392.7,4392.4,0.2932]
[1756600416309,0.193,4393.0,4392.3,3.501]
[1756600416310,0.296,4392.9,4392.3,3.501]
[1756600418306,0.246,4393.4,4393.3,0.5005]
[1756600419611,0.245,4393.5,4393.4,0.5005]
[1756600421512,3.2078,4393.9,4393.8,0.5005]
[1756600421813,3.4538,4393.9,4393.8,0.5005]
[1756600422316,3.2078,4393.9,4393.8,0.5005]
[1756600422510,3.9436,4393.9,4393.3,0.3011]
[1756600423215,3.9436,4393.9,4392.8,2.6635]
[1756600423913,3.4528,4393.9,4392.8,2.6635]
[1756600424414,0.2864,4393.8,4392.8,2.6635]
[1756600425010,3.4528,4393.9,4392.8,2.6635]
[1756600425209,3.4528,4393.9,4392.9,0.3011]
[1756600425417,0.2864,4393.8,4392.9,0.3011]
[1756600426213,3.4528,4393.9,4392.8,3.164]
[1756600426614,0.2864,4393.8,4392.9,0.3011]
[1756600427218,0.4908,4393.8,4393.7,0.1994]
[1756600427519,0.7358,4393.8,4393.7,0.1994]
[1756600427710,3.2078,4394.4,4393.7,0.1994]
[1756600427910,0.2864,4395.6,4395.3,0.1994]
[1756600428111,0.2864,4395.6,4395.3,0.5005]
[1756600428317,0.2864,4396.1,4395.4,0.3011]
[1756600428917,0.4908,4395.5,4395.4,0.3011]
[1756600429215,0.4908,4395.5,4395.4,0.5005]
[1756600430411,0.246,4396.2,4395.4,0.5005]
[1756600430618,0.2864,4396.6,4396.5,0.1994]
[1756600430820,0.2864,4396.6,4396.5,0.5005]
[1756600431419,0.4908,4396.6,4396.5,0.5005]
[1756600432517,0.4908,4396.6,4396.0,0.3011]
[1756600434022,0.4908,4396.6,4395.9,3.2078]
[1756600434023,0.2864,4396.5,4395.6,0.3011]
[1756600436219,0.2864,4396.8,4396.5,0.3011]
[1756600436420,0.245,4397.2,4396.7,0.1994]
[1756600436626,0.2864,4397.1,4397.0,0.1994]
[1756600436925,0.4908,4397.1,4397.0,0.5005]
[1756600437321,0.4908,4397.1,4396.5,3.2078]
[1756600437526,0.4908,4396.6,4396.5,3.2078]
[1756600437922,0.4908,4396.6,4396.5,3.7083]
[1756600439016,0.4908,4396.6,4396.5,0.1994]
[1756600440324,0.4908,4396.6,4396.5,0.5005]
[1756600440727,0.4908,4396.6,4395.9,3.7529]
[1756600441630,0.4908,4396.6,4395.9,3.5089]
[1756600442530,0.4908,4396.0,4395.9,0.5005]
[1756600442731,0.4908,4396.0,4395.9,0.1994]
[1756600443230,0.4908,4396.0,4395.9,0.5005]
[1756600443818,0.4908,4396.0,4395.4,3.2078]
[1756600444024,0.2044,4395.5,4395.4,3.9523]
[1756600444222,0.2864,4395.8,4395.4,3.9523]
[1756600444430,0.2864,4395.8,4395.7,0.1994]
[1756600444728,0.2864,4395.8,4395.7,0.5005]
[1756600445327,0.244,4396.7,4395.8,0.3011]
[1756600445528,0.2864,4396.6,4395.8,0.3011]
[1756600445830,0.4908,4395.5,4395.4,3.7083]
[1756600446720,0.4908,4395.5,4395.4,3.4072]
[1756600447034,0.4908,4395.5,4395.4,3.7083]
[1756600449630,7.43531001,4395.5,4394.3,3.2078]
[1756600449823,0.1916,4394.4,4393.8,3.4508]
[1756600450024,0.4951,4394.4,4393.9,0.2823]
[1756600450524,3.2078,4395.0,4394.3,0.2034]
[1756600450728,0.3035,4394.9,4394.8,0.2034]
[1756600451030,0.3035,4396.4,4395.5,0.2823]
[1756600451332,0.3035,4396.2,4395.5,0.2823]
[1756600452429,0.1916,4395.4,4395.3,3.2078]
[1756600452632,0.3035,4395.3,4395.2,0.2034]
[1756600452832,0.3035,4395.3,4395.2,0.4857]
[1756600453335,3.2078,4395.8,4395.2,0.2034]
[1756600453729,0.3035,4395.7,4395.2,0.2034]
[1756600453928,3.2078,4395.8,4395.2,0.2034]
[1756600454229,0.3035,4395.7,4395.2,0.2034]
[1756600454434,3.2078,4395.8,4395.2,0.2034]
[1756600454735,3.2078,4395.8,4395.2,0.2823]
[1756600455328,3.7029,4395.8,4395.7,0.4857]
[1756600455525,0.3035,4395.7,4395.2,0.2823]
[1756600455724,3.2078,4396.3,4395.1,3.2078]
[1756600455929,0.3035,4396.2,4395.1,3.2078]
[1756600456131,0.3035,4396.2,4395.2,0.2823]
[1756600457238,3.2078,4396.3,4395.2,1.08687842]
[1756600457432,0.3035,4396.2,4395.2,1.08687842]
[1756600457631,3.2078,4396.3,4395.2,1.08687842]
[1756600458639,0.3035,4396.2,4395.2,1.08687842]
[1756600458832,3.2078,4396.3,4395.2,1.08687842]
[1756600459733,0.3035,4396.2,4395.2,1.08687842]
[1756600459940,3.2078,4396.3,4395.2,1.08687842]
[1756600460336,0.3035,4396.2,4395.2,1.08687842]
[1756600460637,0.3035,4396.2,4395.3,0.80457842]
[1756600460836,3.2078,4396.3,4395.3,0.58264334]
[1756600461141,0.3035,4396.2,4395.3,0.58264334]
[1756600461437,3.2078,4396.3,4395.3,0.58264334]
[1756600461837,0.3035,4396.2,4395.3,0.58264334]
[1756600462339,0.4951,4395.4,4395.3,0.78604334]
[1756600462642,0.4951,4395.4,4395.3,0.2034]
[1756600462836,3.2078,4396.3,4395.1,3.2078]
[1756600462837,0.4951,4395.2,4395.1,3.2078]
[1756600464639,0.4951,4395.2,4395.1,2.8078]
[1756600464839,0.4951,4395.2,4395.1,3.0112]
[1756600465242,0.4951,4395.2,4395.1,3.2935]
[1756600465544,0.4951,4395.7,4395.6,0.2034]
[1756600465734,0.4951,4395.7,4395.6,0.4857]
[1756600466636,0.4951,4395.7,4395.6,0.2034]
[1756600467236,0.4951,4395.7,4395.6,0.4857]
[1756600467946,1.18772645,4396.6,4395.6,0.4857]
[1756600467947,3.7029,4396.4,4396.3,0.4857]
[1756600468838,3.3994,4396.4,4396.3,0.4857]
[1756600469042,0.1916,4396.4,4396.3,0.4857]
[1756600470346,0.5455,4396.7,4396.3,0.4857]
[1756600470647,0.3035,4396.6,4396.5,0.2034]
[1756600470834,0.242,4396.7,4396.6,0.2823]
[1756600471038,0.5455,4396.7,4396.6,0.4519]
[1756600471449,0.7371,4396.7,4396.6,0.4519]
[1756600472743,0.7371,4396.7,4396.6,0.1696]
[1756600473348,0.7371,4396.7,4396.6,0.2756]
[1756600474345,32.787,4397.5,4396.6,0.2756]
[1756600474346,0.3035,4397.4,4396.6,0.2756]
[1756600474549,0.51359102,4396.9,4396.8,0.2756]
[1756600474842,1.57537778,4398.9,4396.8,0.2756]
[1756600474843,3.5113,4398.7,4398.1,0.2275]
[1756600475042,0.4951,4398.2,4398.1,0.2275]
[1756600476145,3.2078,4398.7,4398.1,0.14]
[1756600476348,0.3035,4398.6,4398.3,0.0875]
[1756600476543,0.3035,4398.6,4397.9,0.69283774]
[1756600477053,0.3035,4399.2,4398.3,0.0875]
[1756600477459,0.4994,4398.4,4398.3,0.14]
[1756600477859,0.4994,4398.4,4398.3,0.2274]
[1756600478750,0.17933175,4399.7,4397.8,0.242]
[1756600478751,0.189,4398.2,4397.8,0.242]
[1756600478957,3.2078,4398.8,4397.8,0.242]
[1756600478958,0.189,4397.9,4397.8,0.242]
[1756600479164,0.4968,4397.9,4397.8,0.3818]
[1756600479458,0.4968,4397.9,4397.8,0.2272]
[1756600480658,0.4968,4397.9,4397.6,3.2078]
[1756600480861,0.189,4397.7,4397.6,3.3476]
[1756600481063,0.4968,4397.7,4397.6,3.3476]
[1756600481263,0.4968,4397.7,4397.6,3.435]
[1756600481463,3.4498,4398.8,4397.6,3.435]
[1756600481664,0.4968,4397.7,4397.6,3.435]
[1756600482152,3.4498,4398.8,4397.6,3.435]
[1756600482355,0.189,4397.7,4397.6,3.435]
[1756600482565,3.4498,4398.8,4397.6,3.435]
[1756600482767,0.3078,4398.7,4397.6,3.677]
[1756600483264,3.4498,4398.8,4397.6,3.677]
[1756600483265,3.4498,4398.8,4397.6,3.5896]
[1756600483462,0.189,4397.8,4397.7,0.2272]
[1756600483665,0.4968,4397.8,4397.7,0.1398]
[1756600484666,0.4968,4397.8,4397.7,0.2272]
[1756600484965,0.3078,4397.8,4397.7,0.2272]
[1756600487661,0.4968,4397.8,4397.7,0.2272]
[1756600491165,0.17933175,4399.7,4397.7,0.2272]
[1756600491166,0.3078,4398.7,4397.8,0.0874]
[1756600491469,0.4968,4398.7,4398.6,0.2272]
[1756600491657,3.2078,4399.4,4398.6,3.3476]
[1756600491861,0.3078,4399.3,4398.7,0.0874]
[1756600492159,0.189,4398.8,4398.7,0.2272]
[1756600492365,0.4968,4398.8,4398.7,0.2272]
[1756600492562,0.4968,4398.8,4398.6,3.4488]
[1756600492769,0.189,4398.7,4398.4,0.241]
[1756600493067,3.2078,4399.4,4398.1,3.435]
[1756600493068,0.4968,4398.2,4398.1,3.435]
[1756600493267,0.4968,4398.2,4398.1,3.676]
[1756600493457,0.4968,4398.2,4398.1,4.28133774]
[1756600494067,3.2078,4399.4,4398.2,0.0874]
[1756600494366,0.3078,4399.3,4398.2,0.0874]
[1756600494667,0.4968,4398.3,4398.2,0.2272]
[1756600496059,0.3078,4398.1,4398.0,0.60533774]
[1756600496258,0.3078,4398.1,4397.9,0.241]
[1756600496259,0.4968,4398.1,4397.9,0.241]
[1756600496464,0.3078,4398.0,4397.9,0.3808]
[1756600496765,0.4968,4398.0,4397.9,0.4682]
[1756600498467,0.4968,4398.0,4397.9,0.3808]
[1756600498669,0.4968,4398.0,4397.9,0.241]
[1756600498972,0.4968,4397.9,4397.8,0.60533774]
[1756600499267,0.4968,4397.9,4397.6,0.80258795]
[1756600499463,0.4968,4397.7,4397.6,0.80258795]
[1756600499666,0.4968,4397.7,4397.6,1.26978795]
[1756600500073,0.4968,4397.7,4397.6,1.02978795]
[1756600500274,0.4968,4397.6,4397.5,3.2078]
[1756600501361,0.4968,4397.6,4396.9,1.21067549]
[1756600501362,0.4968,4397.5,4396.9,3.81270996]
[1756600501565,0.189,4397.0,4396.9,3.81270996]
[1756600501764,0.4968,4397.0,4396.9,3.81270996]
[1756600502475,0.3078,4396.9,4396.8,0.60490996]
[1756600502772,0.24,4397.2,4396.5,0.60490996]
[1756600502773,0.4968,4396.6,4396.5,0.60490996]
[1756600503073,0.189,4396.3,4396.2,0.60490996]
[1756600503273,0.4968,4396.2,4395.9,0.80258795]
[1756600503474,3.43524,4397.1,4395.9,0.80258795]
[1756600503475,0.189,4396.0,4395.9,0.80258795]
[1756600503670,0.4968,4396.0,4395.9,0.80258795]
[1756600504075,0.4968,4396.0,4395.9,0.94238795]
[1756600504778,0.4968,4395.9,4395.8,4.01038795]
[1756600505378,0.4968,4395.9,4395.8,3.2078]
[1756600505776,0.4968,4395.9,4395.8,3.3476]
[1756600506580,0.4968,4395.9,4395.8,3.2078]
[1756600508177,0.4968,4395.9,4395.3,3.8128312]
[1756600508478,0.4848,4395.4,4395.3,3.4369]
[1756600510376,0.435,4396.4,4395.4,0.0881]
[1756600510676,0.435,4396.4,4395.5,0.0881]
[1756600510677,0.288,4396.4,4395.5,0.0881]
[1756600511373,0.1968,4395.9,4395.8,3.3488]
[1756600511580,0.4848,4395.9,4395.8,3.4369]
[1756600512269,0.288,4396.5,4395.9,0.0881]
[1756600512474,0.4848,4396.0,4395.9,0.2291]
[1756600513583,0.288,4395.9,4395.5,0.0881]
[1756600513878,0.4848,4395.6,4395.5,0.2291]
[1756600514578,0.1968,4395.6,4395.3,3.2078]
[1756600514773,3.2078,4396.4,4395.3,3.4369]
[1756600514774,0.4848,4395.4,4395.3,3.4369]
[1756600515874,0.288,4395.1,4394.7,0.60328949]
[1756600516069,0.144,4395.5,4394.3,0.2291]
[1756600516072,0.4848,4394.4,4394.3,0.2291]
[1756600517472,0.4848,4394.4,4393.8,3.81108949]
[1756600517473,0.1968,4394.4,4393.8,3.81108949]
[1756600517685,0.4848,4393.9,4393.8,3.4369]
[1756600518074,0.4848,4393.9,4393.4,0.0881]
[1756600518580,0.4848,4393.3,4393.2,3.3488]
[1756600518777,0.4848,4393.3,4393.2,3.2078]
[1756600519976,0.4848,4393.3,4393.2,3.3488]
[1756600520874,3.2078,4395.3,4394.1,0.0881]
[1756600521080,3.4958,4396.2,4395.3,0.0881]
[1756600521380,0.4848,4395.4,4395.3,0.2291]
[1756600522988,0.4848,4395.4,4395.3,0.141]
[1756600523178,0.4848,4395.4,4394.9,0.088]
[1756600523378,0.288,4395.3,4394.7,0.088]
[1756600523779,0.4848,4395.3,4395.2,0.1407]
[1756600524580,0.288,4395.2,4394.6,3.2078]
[1756600524784,0.4848,4394.7,4394.6,3.3485]
[1756600524985,0.4848,4394.7,4394.6,3.4365]
[1756600526983,0.4848,4394.7,4394.1,0.088]
[1756600527183,0.4848,4394.1,4394.0,3.2078]
[1756600527390,0.4848,4394.1,4394.0,3.3485]
[1756600527590,0.4848,4394.1,4394.0,3.4365]
[1756600528192,0.4848,4394.1,4394.0,3.2078]
[1756600528688,0.1968,4393.6,4393.5,3.2078]
[1756600528890,0.4848,4393.6,4393.5,3.2078]
[1756600529285,0.4848,4393.6,4393.5,3.4365]
[1756600529593,0.4848,4393.6,4393.5,3.2078]
[1756600530188,0.4848,4393.6,4393.5,3.4365]
[1756600530390,0.288,4395.6,4393.6,0.088]
[1756600530587,0.288,4395.6,4394.5,0.088]
[1756600532590,0.24,4396.1,4394.4,3.2078]
[1756600532591,0.1968,4394.6,4394.4,3.2078]
[1756600532796,0.4848,4394.5,4394.4,3.2078]
[1756600533192,0.4848,4394.5,4394.4,3.4365]
[1756600535986,0.288,4395.0,4394.4,3.3485]
[1756600536298,0.7248,4394.9,4394.6,0.088]
[1756600536487,0.288,4394.8,4394.4,3.2958]
[1756600536887,0.288,4394.8,4394.5,0.088]
[1756600537090,0.4848,4394.6,4394.5,0.2287]
[1756600538297,0.4848,4394.6,4394.5,0.1407]
[1756600539697,0.4848,4394.6,4394.5,0.229]
[1756600540087,0.24,4394.7,4394.6,0.2296]
[1756600540999,0.24,4394.7,4394.6,0.83349521]
[1756600542096,0.24,4394.7,4394.6,0.2296]
[1756600542495,0.283,4395.3,4395.2,0.1413]
[1756600542701,0.7094,4395.3,4395.2,0.2296]
[1756600544903,0.283,4395.6,4395.2,0.1413]
[1756600545198,0.283,4396.2,4395.5,0.6057293]
[1756600545502,0.4694,4395.8,4395.7,0.2296]
[1756600545696,3.2078,4396.3,4395.7,0.74697304]
[1756600545697,0.24,4395.9,4395.7,0.74697304]
[1756600545896,0.24,4395.9,4395.8,0.2296]
[1756600546099,3.2078,4396.9,4395.9,0.0883]
[1756600546401,0.4694,4396.7,4396.6,0.1413]
[1756600546595,0.4694,4396.7,4396.6,0.2296]
[1756600547299,0.283,4396.9,4396.6,0.1413]
[1756600547504,0.239,4397.0,4396.9,0.1413]
[1756600547803,0.239,4397.0,4396.9,0.2296]
[1756600551004,0.7084,4397.0,4396.9,0.2296]
[1756600551201,0.7084,4397.0,4396.9,0.1413]
[1756600552099,0.7084,4397.0,4396.9,0.2296]
[1756600552608,0.7084,4397.0,4396.9,0.1413]
[1756600554103,0.7084,4397.0,4396.9,0.2296]
[1756600555103,0.283,4397.8,4397.0,0.0883]
[1756600555303,3.2078,4397.9,4397.0,0.2296]
[1756600555304,0.1864,4397.1,4397.0,0.2296]
[1756600555509,0.4694,4397.1,4397.0,0.2296]
[1756600555705,0.4694,4397.0,4396.9,3.2078]
[1756600555906,0.4694,4397.0,4396.9,3.4374]
[1756600559811,0.4694,4397.0,4396.9,3.3491]
[1756600561004,0.4694,4397.0,4396.9,3.4366]
[1756600569008,3.2078,4397.9,4396.9,3.4366]
[1756600569009,0.4894,4397.8,4397.7,0.1414]
[1756600569210,0.4894,4397.8,4397.7,0.2298]
[1756600569615,0.237,4398.3,4397.7,0.1414]
[1756600569814,0.2981,4398.2,4397.4,3.2078]
[1756600570010,0.2981,4398.2,4397.5,0.0884]
[1756600570312,0.4894,4398.2,4398.1,0.2298]
[1756600571114,0.2981,4398.2,4398.1,0.2298]
[1756600571312,0.4894,4398.2,4398.1,0.2298]
[1756600572412,0.2981,4398.2,4398.1,0.2298]
[1756600572713,0.2981,4398.4,4398.3,0.2298]
[1756600572914,0.4894,4398.4,4398.3,0.2298]
[1756600573309,0.1913,4398.4,4398.0,3.2078]
[1756600573518,0.4894,4398.1,4398.0,3.2078]
[1756600575411,0.2981,4397.6,4397.5,0.60533697]
[1756600575617,0.4894,4397.0,4396.7,3.2078]
[1756600575807,0.1913,4396.8,4396.7,3.2078]
[1756600576013,0.4894,4396.8,4396.7,3.2078]
[1756600576413,0.4894,4396.8,4396.7,3.4376]
[1756600576613,0.2981,4397.1,4396.8,0.0884]
[1756600576814,0.2981,4397.1,4397.0,0.2298]
[1756600577018,0.4894,4397.1,4397.0,0.2298]
[1756600578121,0.4894,4397.1,4397.0,0.1414]
[1756600578421,0.4894,4397.1,4397.0,0.2298]
[1756600578810,0.4894,4397.1,4397.0,0.1414]
[1756600579216,0.4894,4397.1,4397.0,0.2298]
[1756600579512,0.4894,4397.1,4397.0,0.1414]
[1756600579822,0.4894,4396.8,4396.7,3.4376]
[1756600581118,0.237,4397.4,4396.7,3.4376]
[1756600581621,0.2981,4397.3,4396.7,3.4376]
[1756600582021,0.237,4397.4,4396.7,3.4376]
[1756600582214,0.2981,4397.3,4396.7,3.4376]
[1756600582617,0.4894,4397.3,4397.2,0.2288]
[1756600583114,0.4894,4397.3,4396.9,0.088]
[1756600583511,0.1913,4396.9,4396.8,0.80519361]
[1756600583714,0.4894,4396.9,4396.8,0.80519361]
[1756600585025,0.4894,4396.9,4396.8,1.03399361]
[1756600587025,0.237,4397.4,4396.7,4.01299361]
[1756600587026,0.4894,4396.8,4396.7,4.01299361]
[1756600587225,0.1913,4396.8,4396.3,0.80519361]
[1756600587520,0.4894,4396.3,4396.2,4.01299361]
[1756600588118,0.4894,4396.3,4396.2,3.2078]
[1756600593721,0.4894,4396.3,4395.8,0.088]
[1756600593924,0.1913,4395.7,4395.6,3.4366]
[1756600594229,0.4894,4395.7,4395.6,3.4366]
[1756600595130,0.4894,4395.7,4395.6,3.3486]
[1756600596332,0.4894,4395.7,4395.6,3.4366]
[1756600597128,0.4894,4395.7,4395.1,3.2078]
[1756600597329,0.1913,4394.8,4394.6,3.2078]
[1756600597626,0.1913,4394.8,4394.7,0.2294]
[1756600597627,0.4744,4394.8,4394.7,0.2294]
[1756600599232,0.236,4395.0,4394.7,0.2294]
[1756600599432,0.5191,4395.0,4394.8,0.0882]
[1756600599931,0.7245,4395.0,4394.9,0.1412]
[1756600600133,0.7245,4395.0,4394.9,0.2294]
[1756600601028,32.94905709,4396.5,4395.0,0.0882]
[1756600601029,0.2831,4395.6,4395.0,0.0882]
[1756600601223,3.4438,4395.7,4395.6,0.2294]
[1756600601428,0.4885,4394.8,4394.7,0.2294]
[1756600602433,0.2831,4395.6,4394.7,0.2294]
[1756600602630,0.236,4395.5,4395.4,0.2294]
[1756600602827,3.2078,4396.2,4395.4,0.2294]
[1756600603033,0.2831,4396.0,4395.5,0.0882]
[1756600603241,0.4885,4396.0,4395.9,0.1412]
[1756600603530,0.2054,4395.3,4395.2,3.4372]
[1756600603836,0.2831,4395.5,4395.2,0.1412]
[1756600604037,0.2831,4395.5,4395.4,0.1412]
[1756600604331,0.2831,4395.4,4394.7,0.0882]
[1756600604932,3.4909,4395.6,4395.4,0.0882]
[1756600605231,0.4885,4395.5,4394.8,0.0882]
[1756600605433,0.2831,4395.4,4394.6,3.2078]
[1756600605631,0.2054,4394.7,4394.6,3.349]
[1756600605933,0.4885,4394.7,4394.6,3.349]
[1756600606135,0.4885,4394.7,4394.6,3.4372]
[1756600607733,0.236,4395.1,4394.2,0.80519361]
[1756600607734,3.4438,4395.1,4394.2,0.80519361]
[1756600607937,0.4885,4394.2,4394.1,3.4372]
[1756600608947,0.2831,4394.6,4394.1,3.4372]
[1756600609150,0.2831,4394.9,4394.2,0.0882]
[1756600610745,0.4885,4394.3,4394.1,3.2078]
[1756600611041,0.4885,4394.2,4394.1,3.349]
[1756600611234,0.4885,4394.2,4394.1,3.4372]
[1756600611843,0.4885,4394.2,4394.1,3.349]
[1756600612638,0.4885,4394.2,4394.1,3.4372]
[1756600614939,0.2054,4393.8,4393.6,4.10119361]
[1756600615138,0.4885,4393.7,4393.6,3.296]
[1756600615339,0.4885,4393.7,4393.6,3.2078]
[1756600615840,0.2054,4393.7,4393.1,3.296]
[1756600616146,0.4885,4393.3,4393.2,0.2294]
[1756600617539,0.2831,4395.0,4394.9,0.1412]
[1756600617739,0.4885,4395.0,4394.9,0.2294]
[1756600618336,0.4885,4395.0,4394.1,0.0882]
[1756600618546,0.4885,4395.0,4393.7,0.80697016]
[1756600618547,3.2078,4394.6,4393.7,0.89517016]
[1756600618744,0.2831,4393.7,4393.2,0.89517016]
[1756600618942,0.2054,4393.7,4393.6,3.4372]
[1756600619242,0.2831,4394.0,4393.6,3.4372]
[1756600619449,0.237,4394.5,4394.4,0.2294]
[1756600622048,0.5201,4394.5,4394.4,0.2294]
[1756600622543,0.2831,4394.5,4394.4,0.2294]
[1756600623245,0.4885,4394.5,4394.4,0.1412]
[1756600623450,0.2054,4394.5,4393.9,0.0882]
[1756600623653,3.2078,4396.1,4395.5,0.2294]
[1756600624049,0.2831,4396.0,4395.5,0.2294]
[1756600624348,0.2831,4396.0,4395.6,0.2294]
[1756600624651,0.4885,4395.7,4395.6,0.2294]
[1756600625250,3.2078,4396.1,4394.8,0.2294]
[1756600625251,0.4885,4394.9,4394.8,0.2294]
[1756600625452,0.2831,4395.5,4394.8,0.2294]
[1756600625652,0.2831,4395.5,4394.9,0.0882]
[1756600625946,0.4885,4395.0,4394.9,0.2294]
[1756600626645,0.2831,4395.5,4394.9,0.2294]
[1756600627445,0.2831,4395.5,4395.0,0.0878]
[1756600627652,0.2831,4395.5,4395.4,0.2283]
[1756600628047,0.5164,4395.6,4395.4,0.1405]
[1756600628252,0.5164,4395.6,4395.5,0.2283]
[1756600628551,0.2804,4395.6,4395.5,0.2283]
[1756600629244,0.4852,4395.6,4395.5,0.2283]
[1756600630252,3.2078,4396.1,4395.5,0.2283]
[1756600630442,0.4852,4396.1,4396.0,0.2283]
[1756600630645,0.4852,4396.1,4396.0,0.1405]
[1756600630953,0.2048,4396.2,4396.1,0.2283]
[1756600631252,0.4852,4396.2,4396.1,0.2283]
[1756600632346,0.2804,4396.2,4396.1,0.2283]
[1756600632547,0.236,4396.6,4396.1,0.2283]
[1756600632857,0.7212,4396.6,4396.5,0.1405]
[1756600633550,0.2804,4396.5,4395.6,0.0878]
[1756600635958,0.236,4396.6,4395.6,0.0878]
[1756600635959,0.4852,4395.7,4395.6,0.1405]
[1756600636850,0.4852,4395.7,4395.4,0.80697016]
[1756600636851,0.2048,4395.5,4395.4,4.01477016]
[1756600637155,0.2048,4395.5,4395.1,1.20779042]
[1756600637156,0.2048,4395.5,4395.1,0.80697016]
[1756600637359,0.4852,4395.0,4394.9,3.2078]
[1756600637665,0.4852,4395.0,4394.9,3.4361]
[1756600638153,0.236,4395.4,4394.9,3.4361]
[1756600638457,0.2804,4395.3,4395.2,0.2283]
[1756600638653,0.4852,4395.3,4395.2,0.2283]
[1756600640648,0.2804,4395.9,4395.2,0.2283]
[1756600641956,0.2804,4395.9,4395.3,0.0878]
[1756600642861,0.2048,4395.4,4395.3,0.2283]
[1756600643063,0.4852,4395.4,4395.3,0.2283]
[1756600643754,0.2804,4395.9,4395.3,0.2283]
[1756600643954,3.4882,4396.4,4395.8,0.1391]